fUSD/lending_fUSD_20241105
["ID","MTS","AMOUNT","RATE_DAILY","PERIOD"]
[341337980,1730818252731,-20453.09,0.00027397,2]
[341337983,1730818252741,-500.0,0.00027397,2]
[341337985,1730818252751,-500.0,0.00027397,2]
[341337987,1730818252761,-500.0,0.00027397,2]
[341337988,1730818252770,-839.45,0.00027397,2]
[341337990,1730818252780,-694.1,0.00027397,2]
[341337992,1730818252790,-500.0,0.00027397,2]
[341337994,1730818252804,-1597.24,0.00027397,2]
[341337996,1730818252813,-4040.37,0.00027397,2]
[341337998,1730818252824,-205.10881615,0.00027397,2]
[341338000,1730818252833,-500.0,0.00027397,2]
[341338002,1730818252843,-500.0,0.00027397,2]
[341338004,1730818252852,-500.0,0.00027397,2]
[341338006,1730818252862,-500.0,0.00027397,2]
[341338008,1730818252871,-500.0,0.00027397,2]
[341338010,1730818252881,-250.82528258,0.00027397,2]
[341338012,1730818252890,-157.91129268,0.00027397,2]
[341338014,1730818252900,-500.0,0.00027397,2]
[341338016,1730818252909,-500.0,0.00027397,2]
[341338018,1730818252918,-8586.16,0.00027397,2]
[341338020,1730818252929,-500.0,0.00027397,2]
[341338022,1730818252939,-500.0,0.00027397,2]
[341338024,1730818252948,-500.0,0.00027397,2]
[341338026,1730818252957,-500.0,0.00027397,2]
[341338028,1730818252967,-1073.79,0.00027397,2]
[341338030,1730818252977,-2313.73,0.00027397,2]
[341338032,1730818252987,-500.0,0.00027397,2]
[341338034,1730818252996,-500.0,0.00027397,2]
[341338036,1730818253005,-500.0,0.00027397,2]
[341338038,1730818253014,-510.67329317,0.00027397,2]
[341338039,1730818253023,-514.11747609,0.00027397,2]
[341338041,1730818253032,-558.66,0.00027397,2]
[341338042,1730818253042,-500.0,0.00027397,2]
[341338044,1730818253053,-500.0,0.00027397,2]
[341338046,1730818253062,-500.0,0.00027397,2]
[341338047,1730818253071,-5774.21,0.00027397,2]
[341338049,1730818253080,-500.0,0.00027397,2]
[341338050,1730818253089,-500.0,0.00027397,2]
[341338052,1730818253098,-1029.49,0.00027397,2]
[341338053,1730818253107,-500.0,0.00027397,2]
[341338055,1730818253116,-574.04666115,0.00027397,2]
[341338056,1730818253125,-500.0,0.00027397,2]
[341338058,1730818253135,-500.0,0.00027397,2]
[341338060,1730818253144,-500.0,0.00027397,2]
[341338061,1730818253154,-500.0,0.00027397,2]
[341338063,1730818253163,-500.0,0.00027397,2]
[341338064,1730818253172,-500.0,0.00027397,2]
[341338066,1730818253181,-673.5,0.00027397,2]
[341338068,1730818253191,-500.0,0.00027397,2]
[341338069,1730818253201,-500.0,0.00027397,2]
[341338071,1730818253210,-813.15,0.00027397,2]
[341338073,1730818253220,-500.0,0.00027397,2]
[341338075,1730818253233,-313.0832421,0.00027397,2]
[341338076,1730818253242,-417.25176488,0.00027397,2]
[341338078,1730818253251,-500.0,0.00027397,2]
[341338079,1730818253260,-500.0,0.00027397,2]
[341338081,1730818253271,-1674.98,0.00027397,2]
[341338083,1730818253280,-4168.65,0.00027397,2]
[341338084,1730818253290,-500.0,0.00027397,2]
[341338086,1730818253301,-2221.75,0.00027397,2]
[341338088,1730818253312,-500.0,0.00027397,2]
[341338090,1730818253321,-500.0,0.00027397,2]
[341338091,1730818253331,-722.22,0.00027397,2]
[341338093,1730818253341,-500.0,0.00027397,2]
[341338095,1730818253351,-623.01,0.00027397,2]
[341338096,1730818253360,-553.20443718,0.00027397,2]
[341338098,1730818253369,-500.0,0.00027397,2]
[341338099,1730818253378,-288.98578332,0.00027397,2]
[341338101,1730818253388,-200.0,0.00027397,2]
[341338103,1730818253398,-728.55,0.00027397,2]
[341338105,1730818253407,-500.0,0.00027397,2]
[341338106,1730818253416,-500.0,0.00027397,2]
[341338108,1730818253425,-500.0,0.00027397,2]
[341338110,1730818253434,-800.76,0.00027397,2]
[341338112,1730818253444,-500.0,0.00027397,2]
[341338113,1730818253453,-500.0,0.00027397,2]
[341338115,1730818253464,-1037.42,0.00027397,2]
[341338117,1730818253473,-500.0,0.00027397,2]
[341338119,1730818253483,-500.0,0.00027397,2]
[341338121,1730818253493,-500.0,0.00027397,2]
[341338122,1730818253502,-500.0,0.00027397,2]
[341338124,1730818253511,-500.0,0.00027397,2]
[341338126,1730818253520,-4458.86,0.00027397,2]
[341338127,1730818253529,-500.0,0.00027397,2]
[341338129,1730818253539,-500.0,0.00027397,2]
[341338131,1730818253549,-6100.5,0.00027397,2]
[341338132,1730818253558,-500.0,0.00027397,2]
[341338134,1730818253568,-500.0,0.00027397,2]
[341338136,1730818253577,-1684.86,0.00027397,2]
[341338137,1730818253586,-500.0,0.00027397,2]
[341338139,1730818253595,-746.32,0.00027397,2]
[341338141,1730818253604,-500.0,0.00027397,2]
[341338143,1730818253613,-500.0,0.00027397,2]
[341338144,1730818253622,-860.55,0.00027397,2]
[341338146,1730818253631,-500.0,0.00027397,2]
[341338148,1730818253641,-500.0,0.00027397,2]
[341338150,1730818253650,-2800.82,0.00027397,2]
[341338152,1730818253659,-1239.54,0.00027397,2]
[341338153,1730818253668,-500.0,0.00027397,2]
[341338155,1730818253678,-500.0,0.00027397,2]
[341338157,1730818253687,-500.0,0.00027397,2]
[341338159,1730818253696,-3438.17,0.00027397,2]
[341338160,1730818253705,-500.0,0.00027397,2]
[341338162,1730818253714,-2595.38,0.00027397,2]
[341338164,1730818253723,-500.0,0.00027397,2]
[341338166,1730818253734,-500.0,0.00027397,2]
[341338167,1730818253747,-580.29,0.00027397,2]
[341338169,1730818253757,-3998.92,0.00027397,2]
[341338172,1730818253768,-524.63643536,0.00027397,2]
[341338173,1730818253777,-2840.74,0.00027397,2]
[341338174,1730818253787,-14923.18,0.00027397,2]
[341338175,1730818253800,-847.64,0.00027397,2]
[341338176,1730818253809,-500.0,0.00027397,2]
[341338177,1730818253818,-500.0,0.00027397,2]
[341338178,1730818253827,-1420.05,0.00027397,2]
[341338179,1730818253837,-500.0,0.00027397,2]
[341338180,1730818253846,-500.0,0.00027397,2]
[341338181,1730818253855,-500.0,0.00027397,2]
[341338182,1730818253865,-500.0,0.00027397,2]
[341338183,1730818253875,-500.0,0.00027397,2]
[341338185,1730818253885,-500.0,0.00027397,2]
[341338187,1730818253894,-500.0,0.00027397,2]
[341338189,1730818253905,-7967.31,0.00027397,2]
[341338191,1730818253914,-625.08053425,0.00027397,2]
[341338193,1730818253924,-500.0,0.00027397,2]
[341338195,1730818253933,-1373.68,0.00027397,2]
[341338197,1730818253943,-2786.33,0.00027397,2]
[341338199,1730818253953,-500.0,0.00027397,2]
[341338201,1730818253963,-500.0,0.00027397,2]
[341338203,1730818253972,-500.0,0.00027397,2]
[341338205,1730818253982,-500.0,0.00027397,2]
[341338207,1730818253991,-500.0,0.00027397,2]
[341338209,1730818254001,-500.0,0.00027397,2]
[341338211,1730818254011,-500.0,0.00027397,2]
[341338213,1730818254020,-500.0,0.00027397,2]
[341338215,1730818254029,-500.0,0.00027397,2]
[341338217,1730818254038,-506.51432094,0.00027397,2]
[341338219,1730818254049,-500.0,0.00027397,2]
[341338221,1730818254058,-500.0,0.00027397,2]
[341338223,1730818254067,-500.0,0.00027397,2]
[341338225,1730818254077,-2634.78,0.00027397,2]
[341338227,1730818254086,-500.0,0.00027397,2]
[341338228,1730818254095,-500.0,0.00027397,2]
[341338230,1730818254105,-500.0,0.00027397,2]
[341338233,1730818254115,-500.0,0.00027397,2]
[341338235,1730818254125,-500.0,0.00027397,2]
[341338237,1730818254134,-500.0,0.00027397,2]
[341338239,1730818254144,-4963.13,0.00027397,2]
[341338240,1730818254153,-1485.58,0.00027397,2]
[341338242,1730818254162,-3175.23,0.00027397,2]
[341338244,1730818254172,-500.0,0.00027397,2]
[341338246,1730818254181,-500.0,0.00027397,2]
[341338248,1730818254190,-8714.97,0.00027397,2]
[341338250,1730818254200,-500.0,0.00027397,2]
[341338252,1730818254209,-500.0,0.00027397,2]
[341338254,1730818254218,-202.48955264,0.00027397,2]
[341338256,1730818254227,-500.0,0.00027397,2]
[341338258,1730818254239,-1668.5,0.00027397,2]
[341338260,1730818254248,-500.0,0.00027397,2]
[341338262,1730818254256,-500.0,0.00027397,2]
[341338264,1730818254266,-580.17,0.00027397,2]
[341338266,1730818254275,-2394.75,0.00027397,2]
[341338268,1730818254285,-500.0,0.00027397,2]
[341338270,1730818254294,-500.0,0.00027397,2]
[341338272,1730818254312,-870.25,0.00027397,2]
[341338274,1730818254321,-500.0,0.00027397,2]
[341338276,1730818254330,-510.98947056,0.00027397,2]
[341338278,1730818254339,-3537.3,0.00027397,2]
[341338280,1730818254348,-500.0,0.00027397,2]
[341338282,1730818254357,-500.0,0.00027397,2]
[341338283,1730818254366,-500.0,0.00027397,2]
[341338285,1730818254375,-500.0,0.00027397,2]
[341338287,1730818254384,-812.1,0.00027397,2]
[341338289,1730818254394,-500.0,0.00027397,2]
[341338291,1730818254404,-500.0,0.00027397,2]
[341338293,1730818254413,-500.0,0.00027397,2]
[341338295,1730818254422,-519.6,0.00027397,2]
[341338297,1730818254432,-5273.27,0.00027397,2]
[341338299,1730818254441,-500.0,0.00027397,2]
[341338301,1730818254450,-641.36,0.00027397,2]
[341338303,1730818254460,-500.0,0.00027397,2]
[341338305,1730818254469,-1061.46,0.00027397,2]
[341338307,1730818254479,-500.0,0.00027397,2]
[341338309,1730818254488,-500.0,0.00027397,2]
[341338311,1730818254497,-500.0,0.00027397,2]
[341338313,1730818254508,-2904.78,0.00027397,2]
[341338315,1730818254517,-500.0,0.00027397,2]
[341338317,1730818254527,-22457.59,0.00027397,2]
[341338319,1730818254536,-500.0,0.00027397,2]
[341338321,1730818254545,-500.0,0.00027397,2]
[341338323,1730818254556,-500.0,0.00027397,2]
[341338325,1730818254566,-500.0,0.00027397,2]
[341338327,1730818254575,-500.0,0.00027397,2]
[341338329,1730818254584,-543.17,0.00027397,2]
[341338331,1730818254594,-3230.76,0.00027397,2]
[341338333,1730818254603,-573.81261645,0.00027397,2]
[341338335,1730818254612,-862.17,0.00027397,2]
[341338337,1730818254621,-621.32,0.00027397,2]
[341338339,1730818254631,-500.0,0.00027397,2]
[341338341,1730818254640,-851.69,0.00027397,2]
[341338343,1730818254650,-500.0,0.00027397,2]
[341338345,1730818254661,-2720.75,0.00027397,2]
[341338347,1730818254672,-517.2,0.00027397,2]
[341338349,1730818254682,-500.0,0.00027397,2]
[341338351,1730818254691,-500.0,0.00027397,2]
[341338353,1730818254701,-638.18,0.00027397,2]
[341338355,1730818254710,-500.0,0.00027397,2]
[341338357,1730818254720,-947.11,0.00027397,2]
[341338359,1730818254729,-3625.83,0.00027397,2]
[341338361,1730818254740,-500.0,0.00027397,2]
[341338363,1730818254749,-2072.98,0.00027397,2]
[341338365,1730818254759,-2681.47,0.00027397,2]
[341338367,1730818254770,-500.0,0.00027397,2]
[341338370,1730818254780,-500.0,0.00027397,2]
[341338372,1730818254791,-500.0,0.00027397,2]
[341338373,1730818254803,-500.0,0.00027397,2]
[341338375,1730818254813,-1864.35,0.00027397,2]
[341338377,1730818254822,-738.0,0.00027397,2]
[341338379,1730818254832,-1021.21,0.00027397,2]
[341338381,1730818254841,-879.91,0.00027397,2]
[341338383,1730818254852,-578.85869481,0.00027397,2]
[341338385,1730818254862,-500.0,0.00027397,2]
[341338387,1730818254871,-570.06952283,0.00027397,2]
[341338389,1730818254882,-500.0,0.00027397,2]
[341338392,1730818254892,-500.0,0.00027397,2]
[341338394,1730818254901,-500.0,0.00027397,2]
[341338395,1730818254910,-940.79,0.00027397,2]
[341338397,1730818254920,-1411.05,0.00027397,2]
[341338398,1730818254929,-2015.15,0.00027397,2]
[341338400,1730818254939,-1671.71,0.00027397,2]
[341338402,1730818254948,-200.0,0.000274,2]
[341338404,1730818254958,-180.11,0.00027424,2]
[341338406,1730818254967,-160.2381907,0.00027571,2]
[341338408,1730818254976,-1254.50644098,0.00027571,2]
[341338410,1730818254986,-167.22,0.00027649,2]
[341338412,1730818254995,-353.118,0.00027668,2]
[341338414,1730818255005,-500.0,0.0002767,2]
[341338416,1730818255015,-500.0,0.0002767,2]
[341338418,1730818255024,-349.95,0.0002767,2]
[341338420,1730818255033,-500.0,0.00027671,2]
[341338422,1730818255043,-500.0,0.00027671,2]
[341338424,1730818255055,-959.37,0.00027671,2]
[341338426,1730818255065,-500.0,0.00027671,2]
[341338428,1730818255074,-500.0,0.00027671,2]
[341338429,1730818255083,-500.0,0.00027671,2]
[341338431,1730818255092,-642.42,0.00027671,2]
[341338433,1730818255101,-500.0,0.00027671,2]
[341338435,1730818255111,-500.0,0.00027671,2]
[341338437,1730818255121,-500.0,0.00027671,2]
[341338439,1730818255130,-500.0,0.00027671,2]
[341338441,1730818255139,-521.44889172,0.00027671,2]
[341338443,1730818255149,-500.0,0.00027671,2]
[341338445,1730818255159,-500.0,0.00027671,2]
[341338447,1730818255170,-500.0,0.00027671,2]
[341338449,1730818255179,-500.0,0.00027671,2]
[341338451,1730818255189,-500.0,0.00027671,2]
[341338453,1730818255199,-2202.5,0.00027671,2]
[341338455,1730818255209,-500.0,0.00027671,2]
[341338457,1730818255219,-500.0,0.00027671,2]
[341338459,1730818255228,-500.0,0.00027671,2]
[341338461,1730818255242,-524.92669918,0.00027671,2]
[341338463,1730818255251,-500.0,0.00027671,2]
[341338465,1730818255261,-1276.84,0.00027671,2]
[341338467,1730818255270,-500.0,0.00027671,2]
[341338469,1730818255281,-500.0,0.00027671,2]
[341338471,1730818255291,-500.0,0.00027671,2]
[341338472,1730818255302,-500.0,0.00027671,2]
[341338474,1730818255312,-500.0,0.00027671,2]
[341338476,1730818255322,-500.0,0.00027671,2]
[341338478,1730818255333,-317.31413867,0.00027671,2]
[341338480,1730818255343,-500.0,0.00027671,2]
[341338482,1730818255353,-448.56846474,0.00027671,2]
[341338484,1730818255362,-500.0,0.00027671,2]
[341338486,1730818255372,-500.0,0.00027671,2]
[341338488,1730818255381,-500.0,0.00027671,2]
[341338490,1730818255392,-500.0,0.00027671,2]
[341338492,1730818255401,-524.62,0.00027671,2]
[341338494,1730818255411,-500.0,0.00027671,2]
[341338496,1730818255421,-500.0,0.00027671,2]
[341338498,1730818255430,-605.95544012,0.00027671,2]
[341338500,1730818255440,-335.16600266,0.00027671,2]
[341338502,1730818255449,-500.0,0.00027671,2]
[341338504,1730818255459,-500.0,0.00027671,2]
[341338506,1730818255468,-500.0,0.00027671,2]
[341338508,1730818255478,-500.0,0.00027671,2]
[341338510,1730818255488,-500.0,0.00027671,2]
[341338512,1730818255497,-500.0,0.00027671,2]
[341338514,1730818255506,-500.0,0.00027671,2]
[341338516,1730818255516,-485.60894133,0.00027671,2]
[341338517,1730818255526,-500.0,0.00027671,2]
[341338519,1730818255535,-500.0,0.00027671,2]
[341338521,1730818255545,-500.0,0.00027671,2]
[341338523,1730818255558,-500.0,0.00027671,2]
[341338526,1730818255568,-500.0,0.00027671,2]
[341338528,1730818255578,-500.0,0.00027671,2]
[341338530,1730818255588,-625.80335683,0.00027671,2]
[341338531,1730818255597,-1325.09,0.00027671,2]
[341338533,1730818255607,-500.0,0.00027671,2]
[341338534,1730818255617,-500.0,0.00027671,2]
[341338535,1730818255627,-652.16,0.00027671,2]
[341338536,1730818255637,-500.0,0.00027671,2]
[341338537,1730818255646,-449.39578433,0.00027671,2]
[341338538,1730818255656,-500.0,0.00027671,2]
[341338539,1730818255666,-500.0,0.00027671,2]
[341338540,1730818255675,-500.0,0.00027671,2]
[341338541,1730818255685,-500.0,0.00027671,2]
[341338542,1730818255694,-500.0,0.00027671,2]
[341338544,1730818255704,-1213.8,0.00027671,2]
[341338545,1730818255714,-543.65,0.00027671,2]
[341338547,1730818255724,-500.0,0.00027671,2]
[341338549,1730818255735,-489.00712822,0.00027671,2]
[341338551,1730818255745,-710.18,0.00027671,2]
[341338553,1730818255755,-596.5,0.00027671,2]
[341338555,1730818255764,-212.98054997,0.00027671,2]
[341338557,1730818255774,-500.0,0.00027671,2]
[341338559,1730818255783,-500.0,0.00027671,2]
[341338561,1730818255792,-500.0,0.00027671,2]
[341338563,1730818255805,-500.0,0.00027671,2]
[341338565,1730818255815,-500.0,0.00027671,2]
[341338567,1730818255824,-500.0,0.00027671,2]
[341338569,1730818255834,-500.0,0.00027671,2]
[341338571,1730818255844,-500.0,0.00027671,2]
[341338573,1730818255853,-500.0,0.00027671,2]
[341338575,1730818255862,-500.0,0.00027671,2]
[341338577,1730818255872,-500.0,0.00027671,2]
[341338579,1730818255882,-500.0,0.00027671,2]
[341338581,1730818255892,-500.0,0.00027671,2]
[341338583,1730818255901,-500.0,0.00027671,2]
[341338585,1730818255911,-1031.26,0.00027671,2]
[341338587,1730818255920,-500.0,0.00027671,2]
[341338589,1730818255930,-500.0,0.00027671,2]
[341338591,1730818255940,-500.0,0.00027671,2]
[341338594,1730818255949,-500.0,0.00027671,2]
[341338596,1730818255959,-270.54159376,0.00027671,2]
[341338598,1730818255968,-1810.02,0.00027671,2]
[341338600,1730818255979,-500.0,0.00027671,2]
[341338602,1730818255988,-500.0,0.00027671,2]
[341338604,1730818255998,-500.0,0.00027671,2]
[341338606,1730818256007,-1006.45,0.00027671,2]
[341338608,1730818256018,-1532.81,0.00027671,2]
[341338610,1730818256029,-500.0,0.00027671,2]
[341338612,1730818256038,-500.0,0.00027671,2]
[341338614,1730818256048,-1172.46,0.00027671,2]
[341338616,1730818256058,-543.51216658,0.00027671,2]
[341338618,1730818256067,-950.66,0.00027671,2]
[341338620,1730818256077,-500.0,0.00027671,2]
[341338622,1730818256086,-500.0,0.00027671,2]
[341338624,1730818256096,-339.80840711,0.00027671,2]
[341338626,1730818256105,-566.27,0.00027671,2]
[341338628,1730818256115,-500.0,0.00027671,2]
[341338630,1730818256125,-1150.28,0.00027671,2]
[341338632,1730818256135,-1053.05,0.00027671,2]
[341338635,1730818256144,-1385.21,0.00027671,2]
[341338637,1730818256154,-2449.39,0.00027671,2]
[341338639,1730818256164,-551.76,0.00027671,2]
[341338641,1730818256173,-500.0,0.00027671,2]
[341338643,1730818256184,-500.0,0.00027671,2]
[341338645,1730818256193,-1152.78,0.00027671,2]
[341338647,1730818256202,-500.0,0.00027671,2]
[341338649,1730818256212,-505.75,0.00027671,2]
[341338651,1730818256221,-500.0,0.00027671,2]
[341338653,1730818256231,-500.0,0.00027671,2]
[341338655,1730818256245,-173.22772396,0.00027671,2]
[341338657,1730818256255,-500.0,0.00027671,2]
[341338659,1730818256265,-1169.16,0.00027671,2]
[341338661,1730818256276,-500.0,0.00027671,2]
[341338663,1730818256286,-500.0,0.00027671,2]
[341338665,1730818256297,-500.0,0.00027671,2]
[341338667,1730818256309,-1981.15,0.00027671,2]
[341338669,1730818256321,-231.86180536,0.00027671,2]
[341338671,1730818256331,-1122.88,0.00027671,2]
[341338673,1730818256341,-667.7,0.00027671,2]
[341338675,1730818256351,-151.43098195,0.00027671,2]
[341338677,1730818256363,-765.3,0.00027671,2]
[341338680,1730818256374,-500.0,0.00027671,2]
[341338682,1730818256384,-500.0,0.00027671,2]
[341338684,1730818256394,-1179.4,0.00027671,2]
[341338686,1730818256404,-500.0,0.00027671,2]
[341338688,1730818256414,-416.72289075,0.00027671,2]
[341338690,1730818256424,-745.83,0.00027671,2]
[341338692,1730818256434,-500.0,0.00027671,2]
[341338694,1730818256443,-500.0,0.00027671,2]
[341338696,1730818256453,-369.35370357,0.00027671,2]
[341338698,1730818256464,-500.0,0.00027671,2]
[341338700,1730818256475,-1138.75,0.00027671,2]
[341338702,1730818256487,-500.0,0.00027671,2]
[341338704,1730818256496,-500.0,0.00027671,2]
[341338706,1730818256506,-500.0,0.00027671,2]
[341338708,1730818256516,-500.0,0.00027671,2]
[341338710,1730818256525,-500.0,0.00027671,2]
[341338712,1730818256535,-1799.17,0.00027671,2]
[341338714,1730818256545,-1546.36,0.00027671,2]
[341338716,1730818256557,-500.0,0.00027671,2]
[341338718,1730818256568,-500.0,0.00027671,2]
[341338720,1730818256577,-500.0,0.00027671,2]
[341338722,1730818256587,-918.0,0.00027671,2]
[341338724,1730818256597,-882.74,0.00027671,2]
[341338726,1730818256607,-500.0,0.00027671,2]
[341338728,1730818256617,-500.0,0.00027671,2]
[341338730,1730818256627,-715.96,0.00027671,2]
[341338732,1730818256636,-500.0,0.00027671,2]
[341338734,1730818256646,-500.0,0.00027671,2]
[341338736,1730818256656,-1464.77,0.00027671,2]
[341338738,1730818256668,-500.0,0.00027671,2]
[341338740,1730818256678,-500.0,0.00027671,2]
[341338743,1730818256688,-399.1470164,0.00027671,2]
[341338745,1730818256698,-500.0,0.00027671,2]
[341338747,1730818256707,-500.0,0.00027671,2]
[341338749,1730818256717,-821.25,0.00027671,2]
[341338751,1730818256727,-561.05,0.00027671,2]
[341338753,1730818256736,-2488.35,0.00027671,2]
[341338755,1730818256745,-500.0,0.00027671,2]
[341338757,1730818256755,-500.0,0.00027671,2]
[341338759,1730818256764,-1277.43,0.00027671,2]
[341338761,1730818256774,-789.16,0.00027671,2]
[341338788,1730818257009,-1983.46,0.00027671,2]
[341338791,1730818257056,-500.0,0.00027671,2]
[341338793,1730818257065,-219.85169302,0.00027671,2]
[341338795,1730818257074,-500.0,0.00027671,2]
[341338797,1730818257084,-1319.52,0.00027671,2]
[341338799,1730818257093,-770.21,0.00027671,2]
[341338801,1730818257102,-500.0,0.00027671,2]
[341338803,1730818257111,-933.5,0.00027671,2]
[341338805,1730818257121,-500.0,0.00027671,2]
[341338807,1730818257130,-1484.81,0.00027671,2]
[341338810,1730818257144,-769.6,0.00027671,2]
[341338812,1730818257153,-2097.16,0.00027671,2]
[341338814,1730818257162,-893.08,0.00027671,2]
[341338816,1730818257172,-500.0,0.00027671,2]
[341338818,1730818257181,-706.56,0.00027671,2]
[341338820,1730818257191,-626.22,0.00027671,2]
[341338822,1730818257200,-1129.24,0.00027671,2]
[341338824,1730818257209,-1181.37,0.00027671,2]
[341338826,1730818257218,-500.0,0.00027671,2]
[341338828,1730818257229,-500.0,0.00027671,2]
[341338829,1730818257244,-500.0,0.00027671,2]
[341338830,1730818257254,-500.0,0.00027671,2]
[341338831,1730818257266,-1105.93,0.00027671,2]
[341338832,1730818257278,-500.0,0.00027671,2]
[341338833,1730818257288,-500.0,0.00027671,2]
[341338834,1730818257298,-1772.13,0.00027671,2]
[341338836,1730818257310,-1949.19,0.00027671,2]
[341338838,1730818257319,-500.0,0.00027671,2]
[341338840,1730818257329,-500.0,0.00027671,2]
[341338842,1730818257338,-500.0,0.00027671,2]
[341338844,1730818257348,-2148.83,0.00027671,2]
[341338846,1730818257357,-500.0,0.00027671,2]
[341338848,1730818257367,-899.14,0.00027671,2]
[341338850,1730818257376,-500.0,0.00027671,2]
[341338852,1730818257386,-2651.17,0.00027671,2]
[341338854,1730818257396,-500.0,0.00027671,2]
[341338856,1730818257405,-500.0,0.00027671,2]
[341338858,1730818257414,-729.55,0.00027671,2]
[341338860,1730818257423,-891.77,0.00027671,2]
[341338862,1730818257433,-500.0,0.00027671,2]
[341338864,1730818257442,-1337.92,0.00027671,2]
[341338866,1730818257452,-500.0,0.00027671,2]
[341338868,1730818257461,-500.0,0.00027671,2]
[341338870,1730818257470,-500.0,0.00027671,2]
[341338872,1730818257480,-500.0,0.00027671,2]
[341338874,1730818257489,-500.0,0.00027671,2]
[341338876,1730818257498,-500.0,0.00027671,2]
[341338878,1730818257508,-2000.0,0.00027671,2]
[341338880,1730818257517,-500.0,0.00027671,2]
[341338882,1730818257526,-500.0,0.00027671,2]
[341338884,1730818257536,-500.0,0.00027671,2]
[341338886,1730818257545,-1628.51,0.00027671,2]
[341338888,1730818257556,-1340.76,0.00027671,2]
[341338890,1730818257565,-500.0,0.00027671,2]
[341338892,1730818257574,-1205.1,0.00027671,2]
[341338894,1730818257584,-500.0,0.00027671,2]
[341338896,1730818257593,-671.93,0.00027671,2]
[341338898,1730818257602,-2625.61,0.00027671,2]
[341338900,1730818257611,-500.0,0.00027671,2]
[341338902,1730818257621,-1052.87,0.00027671,2]
[341338904,1730818257630,-862.96,0.00027671,2]
[341338906,1730818257639,-500.0,0.00027671,2]
[341338908,1730818257648,-1134.95,0.00027671,2]
[341338910,1730818257658,-500.0,0.00027671,2]
[341338912,1730818257667,-500.0,0.00027671,2]
[341338914,1730818257677,-500.0,0.00027671,2]
[341338916,1730818257686,-495.83407737,0.00027671,2]
[341338918,1730818257695,-713.84,0.00027671,2]
[341338920,1730818257704,-500.0,0.00027671,2]
[341338922,1730818257714,-1190.36,0.00027671,2]
[341338924,1730818257724,-561.87,0.00027671,2]
[341338926,1730818257734,-574.4510652,0.00027671,2]
[341338928,1730818257743,-500.0,0.00027671,2]
[341338930,1730818257753,-500.0,0.00027671,2]
[341338932,1730818257762,-277.71183964,0.00027671,2]
[341338934,1730818257772,-500.0,0.00027671,2]
[341338936,1730818257781,-500.0,0.00027671,2]
[341338938,1730818257791,-500.0,0.00027671,2]
[341338940,1730818257800,-1258.85,0.00027671,2]
[341338942,1730818257811,-708.32,0.00027671,2]
[341338944,1730818257820,-719.74,0.00027671,2]
[341338946,1730818257829,-500.0,0.00027671,2]
[341338948,1730818257838,-500.0,0.00027671,2]
[341338950,1730818257848,-500.0,0.00027671,2]
[341338951,1730818257857,-530.24,0.00027671,2]